fUSD/lending_fUSD_20250620
["ID","MTS","AMOUNT","RATE_DAILY","PERIOD"]
[366712502,1750415647959,-689.38,0.00029589,4]
[366712503,1750415647984,-556.07,0.00029589,4]
[366712504,1750415648002,-414.75739246,0.00029589,4]
[366712505,1750415648019,-929.62,0.00029589,4]
[366712506,1750415648036,-852.86,0.00029589,4]
[366712507,1750415648054,-540.11,0.00029589,4]
[366712508,1750415648070,-490.0,0.00029589,4]
[366712509,1750415648087,-549.5,0.00029589,4]
[366712510,1750415648106,-490.0,0.00029589,4]
[366712511,1750415648124,-719.33,0.00029589,4]
[366712512,1750415648140,-490.0,0.00029589,4]
[366712513,1750415648156,-1178.9,0.00029589,4]
[366712514,1750415648173,-992.43,0.00029589,4]
[366712515,1750415648192,-490.0,0.00029589,4]
[366712516,1750415648209,-2120.13,0.00029589,4]
[366712517,1750415648226,-493.81200982,0.00029589,4]
[366712518,1750415648245,-797.21,0.00029589,4]
[366712519,1750415648262,-2831.45,0.00029589,4]
[366712520,1750415648280,-1657.46,0.00029589,4]
[366712521,1750415648295,-1176.63,0.00029589,4]
[366712522,1750415648312,-835.13,0.00029589,4]
[366712523,1750415648329,-640.77,0.00029589,4]
[366712524,1750415648346,-955.18,0.00029589,4]
[366712525,1750415648363,-759.69,0.00029589,4]
[366712526,1750415648379,-495.19,0.00029589,4]
[366712527,1750415648397,-1620.75,0.00029589,4]
[366712528,1750415648415,-2608.35,0.00029589,4]
[366712529,1750415648433,-1487.07,0.00029589,4]
[366712530,1750415648451,-490.0,0.00029589,4]
[366712531,1750415648467,-620.7,0.00029589,4]
[366712532,1750415648483,-2196.02,0.00029589,4]
[366712533,1750415648500,-2048.55,0.00029589,4]
[366712534,1750415648516,-1452.89,0.00029589,4]
[366712535,1750415648531,-676.1,0.00029589,4]
[366712536,1750415648548,-490.0,0.00029589,4]
[366712537,1750415648564,-3078.01,0.00029589,4]
[366712538,1750415648581,-729.0,0.00029589,4]
[366712539,1750415648599,-646.89,0.00029589,4]
[366712540,1750415648618,-490.0,0.00029589,4]
[366712541,1750415648637,-692.86,0.00029589,4]
[366712542,1750415648655,-1111.1,0.00029589,4]
[366712543,1750415648674,-726.03,0.00029589,4]
[366712544,1750415648690,-896.01,0.00029589,4]
[366712545,1750415648706,-522.54,0.00029589,4]
[366712546,1750415648723,-817.65,0.00029589,4]
[366712547,1750415648741,-1212.05,0.00029589,4]
[366712548,1750415648760,-490.0,0.00029589,4]
[366712549,1750415648777,-1510.44,0.00029589,4]
[366712550,1750415648795,-563.12,0.00029589,4]
[366712551,1750415648813,-17404.6,0.00029589,4]
[366712552,1750415648831,-516.42,0.00029589,4]
[366712553,1750415648848,-1966.77,0.00029589,4]
[366712554,1750415648864,-499.64,0.00029589,4]
[366712555,1750415648881,-496.54,0.00029589,4]
[366712556,1750415648898,-682.61,0.00029589,4]
[366712557,1750415648915,-1292.76,0.00029589,4]
[366712558,1750415648929,-532.96,0.00029589,4]
[366712559,1750415648946,-490.0,0.00029589,4]
[366712560,1750415648963,-3089.65,0.00029589,4]
[366712561,1750415648980,-490.0,0.00029589,4]
[366712562,1750415648996,-1110.49,0.00029589,4]
[366712563,1750415649014,-875.85,0.00029589,4]
[366712564,1750415649033,-490.0,0.00029589,4]
[366712565,1750415649049,-808.72,0.00029589,4]
[366712566,1750415649067,-548.1,0.00029589,4]
[366712567,1750415649086,-1116.64,0.00029589,4]
[366712568,1750415649103,-741.55,0.00029589,4]
[366712569,1750415649651,-490.0,0.00029589,4]
[366712570,1750415649727,-490.0,0.00029589,4]
[366712571,1750415649737,-900.32,0.00029589,4]
[366712572,1750415649747,-490.0,0.00029589,4]
[366712573,1750415649757,-3388.66,0.00029589,4]
[366712574,1750415649766,-1386.85,0.00029589,4]
[366712575,1750415649775,-2512.9,0.00029589,4]
[366712576,1750415649785,-613.06,0.00029589,4]
[366712577,1750415649795,-7527.62,0.00029589,4]
[366712578,1750415649805,-7882.79,0.00029589,4]
[366712579,1750415649815,-741.74,0.00029589,4]
[366712580,1750415649824,-557.61,0.00029589,4]
[366712581,1750415649834,-2444.05,0.00029589,4]
[366712582,1750415649844,-1074.56,0.00029589,4]
[366712583,1750415649853,-716.85,0.00029589,4]
[366712584,1750415649863,-3776.02,0.00029589,4]
[366712585,1750415649873,-600.0,0.00029589,120]
[366712586,1750415649883,-759.29,0.00029589,4]
[366712587,1750415649892,-1533.1,0.00029589,4]
[366712588,1750415649902,-508.46,0.00029589,4]
[366712589,1750415649911,-490.0,0.00029589,4]
[366712590,1750415649921,-5317.42,0.00029589,4]
[366712591,1750415649931,-1702.18,0.00029589,4]
[366712592,1750415649942,-1502.12,0.00029589,4]
[366712593,1750415649951,-490.0,0.00029589,4]
[366712594,1750415649961,-9880.35,0.00029589,4]
[366712595,1750415649970,-670.44,0.00029589,4]
[366712596,1750415649979,-2012.16,0.00029589,4]
[366712597,1750415649989,-1936.5,0.00029589,4]
[366712598,1750415649999,-6404.69,0.00029589,4]
[366712599,1750415650008,-500.71137906,0.00029589,4]
[366712600,1750415650017,-2380.6,0.00029589,4]
[366712601,1750415650027,-1141.27,0.00029589,4]
[366712602,1750415650036,-510.99,0.00029589,4]
[366712603,1750415650045,-691.59,0.00029589,4]
[366712604,1750415650054,-490.0,0.00029589,4]
[366712605,1750415650064,-490.0,0.00029589,4]
[366712606,1750415650074,-2450.17,0.00029589,4]
[366712607,1750415650084,-1844.2,0.00029589,4]
[366712608,1750415650094,-622.58,0.00029589,4]
[366712609,1750415650104,-1419.42,0.00029589,4]
[366712610,1750415650114,-17540.73,0.00029589,4]
[366712611,1750415650123,-1227.01,0.00029589,4]
[366712612,1750415650134,-490.0,0.00029589,4]
[366712613,1750415650143,-490.0,0.00029589,4]
[366712614,1750415650153,-490.0,0.00029589,4]
[366712615,1750415650163,-490.0,0.00029589,4]
[366712616,1750415650173,-5948.54,0.00029589,4]
[366712617,1750415650182,-957.68,0.00029589,4]
[366712618,1750415650192,-5372.22,0.00029589,4]
[366712619,1750415650202,-1499.27,0.00029589,4]
[366712620,1750415650212,-1594.4,0.00029589,4]
[366712621,1750415650222,-490.0,0.00029589,4]
[366712622,1750415650232,-1525.88,0.00029589,4]
[366712623,1750415650242,-18649.49,0.00029589,4]
[366712624,1750415650251,-490.0,0.00029589,4]
[366712625,1750415650262,-662.4,0.00029589,4]
[366712626,1750415650272,-11431.71,0.00029589,4]
[366712627,1750415650282,-574.02,0.00029589,4]
[366712628,1750415650292,-490.0,0.00029589,4]
[366712629,1750415650302,-2766.75,0.00029589,4]
[366712630,1750415650311,-490.0,0.00029589,4]
[366712631,1750415650321,-1747.3,0.00029589,4]
[366712632,1750415650331,-490.0,0.00029589,4]
[366712633,1750415650341,-521.31,0.00029589,4]
[366712634,1750415650351,-1639.8,0.00029589,4]
[366712635,1750415650361,-641.47,0.00029589,4]
[366712636,1750415650371,-1452.7,0.00029589,4]
[366712637,1750415650380,-766.28,0.00029589,4]
[366712638,1750415650390,-490.0,0.00029589,4]
[366712639,1750415650399,-1528.81,0.00029589,4]
[366712640,1750415650409,-2442.89,0.00029589,4]
[366712641,1750415650419,-490.0,0.00029589,4]
[366712642,1750415650429,-974.85,0.00029589,4]
[366712643,1750415650439,-525.8,0.00029589,4]
[366712644,1750415650449,-655.26,0.00029589,4]
[366712645,1750415650458,-550.06514881,0.00029589,4]
[366712646,1750415650467,-6155.02,0.00029589,4]
[366712647,1750415650477,-1546.64,0.00029589,4]
[366712648,1750415650488,-952.09,0.00029589,4]
[366712649,1750415650499,-2556.54,0.00029589,4]
[366712650,1750415650508,-490.0,0.00029589,4]
[366712651,1750415650519,-490.0,0.00029589,4]
[366712652,1750415650529,-1078.67,0.00029589,4]
[366712653,1750415650539,-1698.38,0.00029589,4]
[366712654,1750415650550,-7770.54,0.00029589,4]
[366712655,1750415650561,-490.0,0.00029589,4]
[366712656,1750415650572,-490.0,0.00029589,4]
[366712657,1750415650581,-713.18,0.00029589,4]
[366712658,1750415650592,-490.0,0.00029589,4]
[366712659,1750415650602,-1078.51,0.00029589,4]
[366712660,1750415650613,-565.57,0.00029589,4]
[366712661,1750415650623,-490.0,0.00029589,4]
[366712662,1750415650634,-490.0,0.00029589,4]
[366712663,1750415650644,-541.6578811,0.00029599,4]
[366712664,1750415650654,-490.0,0.00029599,4]
[366712665,1750415650664,-709.67,0.00029599,4]
[366712666,1750415650673,-490.0,0.00029599,4]
[366712667,1750415650683,-716.73,0.00029599,4]
[366712668,1750415650692,-477.34413563,0.00029599,4]
[366712669,1750415650701,-879.88,0.00029599,4]
[366712670,1750415650711,-490.0,0.00029599,4]
[366712671,1750415650721,-490.0,0.00029599,4]
[366712672,1750415650731,-490.0,0.00029599,4]
[366712673,1750415650743,-490.0,0.00029599,4]
[366712674,1750415650753,-490.0,0.00029599,4]
[366712675,1750415650763,-490.0,0.00029599,4]
[366712676,1750415650773,-490.0,0.00029599,4]
[366712677,1750415650784,-1218.9,0.00029599,4]
[366712678,1750415650796,-901.28,0.00029599,4]
[366712679,1750415650806,-507.19,0.00029599,4]
[366712680,1750415650817,-490.0,0.00029599,4]
[366712681,1750415650827,-584.6,0.00029599,4]
[366712682,1750415650837,-491.83883242,0.00029599,4]
[366712683,1750415650847,-490.0,0.00029599,4]
[366712684,1750415650856,-490.0,0.00029599,4]
[366712685,1750415650866,-624.83,0.00029599,4]
[366712686,1750415650877,-947.23,0.00029599,4]
[366712687,1750415650886,-497.34,0.00029599,4]
[366712688,1750415650896,-1160.0,0.00029599,4]
[366712689,1750415650905,-682.25,0.00029599,4]
[366712690,1750415650915,-676.69,0.00029599,4]
[366712691,1750415650925,-798.57,0.00029599,4]
[366712692,1750415650935,-490.0,0.00029599,4]
[366712693,1750415650944,-490.0,0.00029599,4]
[366712694,1750415650953,-490.0,0.00029599,4]
[366712695,1750415650963,-490.0,0.00029599,4]
[366712696,1750415650973,-490.0,0.00029599,4]
[366712697,1750415650982,-994.26,0.00029599,4]
[366712698,1750415650993,-490.0,0.00029599,4]
[366712699,1750415651004,-490.0,0.00029599,4]
[366712700,1750415651015,-504.86,0.00029599,4]
[366712701,1750415651026,-1262.16,0.00029599,4]
[366712702,1750415651037,-526.89,0.00029599,4]
[366712703,1750415651047,-490.0,0.00029599,4]
[366712704,1750415651057,-490.0,0.00029599,4]
[366712705,1750415651068,-562.08,0.00029599,4]
[366712706,1750415651078,-545.75,0.00029599,4]
[366712707,1750415651087,-1061.69,0.00029599,4]
[366712708,1750415651098,-809.96,0.00029599,4]
[366712709,1750415651107,-631.0,0.00029599,4]
[366712710,1750415651117,-1378.13,0.00029599,4]
[366712711,1750415651127,-490.0,0.00029599,4]
[366712712,1750415651137,-490.0,0.00029599,4]
[366712713,1750415651147,-490.0,0.00029599,4]
[366712714,1750415651157,-559.26,0.00029599,4]
[366712715,1750415651167,-707.03,0.00029599,4]
[366712716,1750415651177,-490.0,0.00029599,4]
[366712717,1750415651187,-2021.51,0.00029599,4]
[366712718,1750415651197,-547.36,0.00029599,4]
[366712719,1750415651207,-1831.85,0.00029599,4]
[366712720,1750415651216,-606.95,0.00029599,4]
[366712721,1750415651228,-1476.65,0.00029599,4]
[366712722,1750415651238,-490.0,0.00029599,4]
[366712723,1750415651248,-1005.12,0.00029599,4]
[366712724,1750415651258,-1516.56,0.00029599,4]
[366712725,1750415651267,-600.95,0.00029599,4]
[366712726,1750415651277,-490.0,0.00029599,4]
[366712727,1750415651288,-490.0,0.00029599,4]
[366712728,1750415651298,-490.0,0.00029599,4]
[366712729,1750415651308,-302.3,0.00029599,4]
[366712730,1750415651318,-1853.92,0.00029599,4]
[366712731,1750415651328,-490.0,0.00029599,4]
[366712732,1750415651338,-1207.48,0.00029599,4]
[366712733,1750415651348,-970.42,0.00029599,4]
[366712734,1750415651359,-1085.47,0.00029599,4]
[366712735,1750415651368,-555.86,0.00029599,4]
[366712736,1750415651379,-1321.89,0.00029599,4]
[366712737,1750415651390,-907.27,0.00029599,4]
[366712738,1750415651400,-490.0,0.00029599,4]
[366712739,1750415651410,-490.0,0.00029599,4]
[366712740,1750415651421,-490.0,0.00029599,4]
[366712741,1750415651433,-1835.37,0.00029599,4]
[366712742,1750415651443,-490.0,0.00029599,4]
[366712743,1750415651454,-556.59,0.00029599,4]
[366712744,1750415651465,-1052.99,0.00029599,4]
[366712745,1750415651476,-490.0,0.00029599,4]
[366712746,1750415651487,-567.01,0.00029599,4]
[366712747,1750415651499,-492.0,0.00029599,4]
[366712748,1750415651509,-819.36,0.00029599,4]
[366712749,1750415651519,-2175.07,0.00029599,4]
[366712750,1750415651530,-490.0,0.00029599,4]
[366712751,1750415651541,-789.56,0.00029599,4]
[366712752,1750415651551,-1474.82,0.00029599,4]
[366712753,1750415651562,-490.0,0.00029599,4]
[366712754,1750415651572,-1752.57,0.00029599,4]
[366712755,1750415651582,-490.0,0.00029599,4]
[366712756,1750415651592,-490.0,0.00029599,4]
[366712757,1750415651602,-2581.66,0.00029599,4]
[366712758,1750415651614,-490.0,0.00029599,4]
[366712759,1750415651624,-1705.52,0.00029599,4]
[366712760,1750415651636,-1306.7,0.00029599,4]
[366712761,1750415651646,-525.6,0.00029599,4]
[366712762,1750415651656,-737.94,0.00029599,4]
[366712763,1750415651666,-490.0,0.00029599,4]
[366712764,1750415651676,-490.0,0.00029599,4]
[366712765,1750415651685,-616.11,0.00029599,4]
[366712766,1750415651694,-749.2,0.00029599,4]
[366712767,1750415651704,-1450.49,0.00029599,4]
[366712768,1750415651714,-733.41,0.00029599,4]
[366712769,1750415651724,-490.0,0.00029599,4]
[366712770,1750415651734,-2517.34,0.00029599,4]
[366712771,1750415651743,-647.98,0.00029599,4]
[366712772,1750415651753,-1420.61,0.00029599,4]
[366712773,1750415651763,-666.21,0.00029599,4]
[366712774,1750415651772,-490.0,0.00029599,4]
[366712775,1750415651782,-798.3,0.00029599,4]
[366712776,1750415651793,-490.0,0.00029599,4]
[366712777,1750415651803,-490.0,0.00029599,4]
[366712778,1750415651812,-490.0,0.00029599,4]
[366712779,1750415651822,-629.3,0.00029599,4]
[366712780,1750415651832,-744.22,0.00029599,4]
[366712781,1750415651841,-490.0,0.00029599,4]
[366712782,1750415651851,-824.71,0.00029599,4]
[366712783,1750415651860,-1579.86,0.00029599,4]
[366712784,1750415651870,-490.0,0.00029599,4]
[366712785,1750415651879,-509.05,0.00029599,4]
[366712786,1750415651888,-2238.49,0.00029599,4]
[366712787,1750415651898,-466.7169745,0.00029599,4]
[366712788,1750415651908,-597.0,0.00029599,4]
[366712789,1750415651918,-490.0,0.00029599,4]
[366712790,1750415651928,-933.51,0.00029599,4]
[366712791,1750415651938,-822.58,0.00029599,4]
[366712792,1750415651948,-838.77,0.00029599,4]
[366712793,1750415651960,-504.68,0.00029599,4]
[366712794,1750415651970,-507.81,0.00029599,4]
[366712795,1750415651981,-490.0,0.00029599,4]
[366712796,1750415651991,-490.0,0.00029599,4]
[366712797,1750415652001,-572.5,0.00029599,4]
[366712798,1750415652011,-490.0,0.00029599,4]
[366712799,1750415652020,-490.0,0.00029599,4]
[366712800,1750415652031,-1129.55,0.00029599,4]
[366712801,1750415652041,-858.91,0.00029599,4]
[366712802,1750415652051,-490.0,0.00029599,4]
[366712803,1750415652062,-800.69,0.00029599,4]
[366712804,1750415652072,-1036.77,0.00029599,4]
[366712805,1750415652081,-490.0,0.00029599,4]
[366712806,1750415652091,-1310.63,0.00029599,4]
[366712807,1750415652101,-490.0,0.00029599,4]
[366712808,1750415652111,-867.83,0.00029599,4]
[366712809,1750415652121,-545.19,0.00029599,4]
[366712810,1750415652131,-1236.78,0.00029599,4]
[366712811,1750415652141,-490.0,0.00029599,4]
[366712812,1750415652151,-509.27,0.00029599,4]
[366712813,1750415652160,-490.0,0.00029599,4]
[366712814,1750415652171,-1804.01,0.00029599,4]
[366712815,1750415652181,-495.77802105,0.00029599,4]
[366712816,1750415652191,-1718.47,0.00029599,4]
[366712817,1750415652201,-490.0,0.00029599,4]
[366712818,1750415652211,-528.49,0.00029599,4]
[366712819,1750415652221,-490.0,0.00029599,4]
[366712820,1750415652231,-808.69,0.00029599,4]
[366712821,1750415652241,-490.0,0.00029599,4]
[366712822,1750415652252,-490.0,0.00029599,4]
[366712823,1750415652262,-726.13,0.00029599,4]
[366712824,1750415652272,-1335.72,0.000296,2]
[366712825,1750415652282,-821.31,0.000296,2]
[366712826,1750415652292,-1498.14,0.000296,2]
[366712827,1750415652303,-264.7,0.000296,2]
[366712828,1750415652312,-3339.99,0.000296,2]
[366712829,1750415652322,-11521.38,0.000296,2]
[366712830,1750415652332,-155.02779254,0.000296,4]
[366712831,1750415652343,-490.0,0.000296,4]
[366712832,1750415652354,-924.0,0.000296,4]
[366712833,1750415652364,-490.0,0.000296,4]
[366712834,1750415652376,-490.0,0.000296,4]
[366712835,1750415652386,-555.64,0.000296,4]
[366712836,1750415652396,-490.0,0.000296,4]
[366712837,1750415652407,-560.67,0.000296,4]
[366712838,1750415652419,-714.6,0.000296,4]
[366712839,1750415652430,-490.0,0.000296,4]
[366712840,1750415652440,-490.0,0.000296,4]
[366712841,1750415652451,-584.97,0.000296,4]
[366712842,1750415652461,-490.0,0.000296,4]
[366712843,1750415652470,-528.72,0.000296,4]
[366712844,1750415652480,-490.0,0.000296,4]
[366712845,1750415652490,-490.0,0.000296,4]
[366712846,1750415652500,-490.0,0.000296,4]
[366712847,1750415652509,-490.0,0.000296,4]
[366712848,1750415652519,-595.37,0.000296,4]
[366712849,1750415652529,-641.41385573,0.00029625,3]
[366712850,1750415652538,-151.0,0.00029652,3]
[366712851,1750415652549,-211.0,0.0002967,2]
[366712852,1750415652559,-200.0,0.0002968,25]
[366712853,1750415652570,-120408.09,0.000297,7]
[366712854,1750415652581,-150.0,0.00029716,2]
[366712855,1750415652591,-490.0,0.00029727,4]
[366712856,1750415652603,-775.47665243,0.00029728,21]
[366712857,1750415652614,-12500.0,0.00029793,3]
[366712858,1750415652626,-12500.0,0.00029801,3]
[366712859,1750415652639,-150.0,0.00029805,7]
[366712860,1750415652649,-12500.0,0.0002981,3]
[366712861,1750415652658,-12500.0,0.0002981,3]
[366712862,1750415652668,-12500.0,0.00029819,3]
[366712863,1750415652678,-12500.0,0.00029819,3]
[366712864,1750415652687,-8550.37540556,0.00029821,3]
[366712865,1750415652698,-500.0,0.00029826,120]
[366712866,1750415652709,-855.14,0.00029831,4]
[366712867,1750415652718,-582.27889642,0.00029831,4]
[366712868,1750415652728,-941.29,0.00029831,4]
[366712869,1750415652738,-710.39,0.00029841,4]
[366712870,1750415652748,-2657.88,0.00029841,4]
[366712871,1750415652759,-678.91,0.00029841,4]
[366712872,1750415652769,-951.97,0.00029841,4]
[366712873,1750415652779,-982.82,0.00029841,4]
[366712874,1750415652788,-934.95,0.00029841,4]
[366712875,1750415652798,-1196.7,0.00029841,4]
[366712876,1750415652808,-905.13,0.00029841,4]
[366712877,1750415652817,-733.67,0.00029841,4]
[366712878,1750415652827,-623.14,0.00029841,4]
[366712879,1750415652837,-858.58,0.00029841,4]
[366712880,1750415652847,-4996.22,0.00029841,4]
[366712881,1750415652856,-1411.02,0.00029841,4]
[366712882,1750415652866,-566.53,0.00029841,4]
[366712883,1750415652876,-673.04,0.00029841,4]
[366712884,1750415652886,-560.81,0.00029841,4]
[366712885,1750415652896,-5470.75,0.00029841,4]
[366712886,1750415652906,-608.76,0.00029841,4]
[366712887,1750415652916,-2781.24,0.00029841,4]
[366712888,1750415652927,-622.46,0.00029841,4]
[366712889,1750415652938,-2671.47,0.00029841,4]
[366712890,1750415652949,-807.14,0.00029841,4]
[366712891,1750415652960,-490.0,0.00029851,4]
[366712892,1750415652972,-490.0,0.00029851,4]
[366712893,1750415652983,-490.0,0.00029851,4]
[366712894,1750415652993,-525.64,0.00029851,4]
[366712895,1750415653005,-490.0,0.00029851,4]
[366712896,1750415653016,-824.86,0.00029851,4]
[366712897,1750415653027,-490.0,0.00029851,4]
[366712898,1750415653039,-1042.35,0.00029851,4]
[366712899,1750415653049,-2063.423116,0.00029851,4]
[366712900,1750415653059,-1129.83,0.00029851,4]
[366712901,1750415653413,-490.0,0.00029851,4]
[366712902,1750415653427,-152.3464,0.00029851,4]
[366712903,1750415653437,-2980.629608,0.00029851,4]
[366712904,1750415653448,-1443.11,0.00029851,4]
[366712905,1750415653459,-6813.75,0.00029851,4]
[366712906,1750415653468,-977.73,0.00029851,4]
[366712907,1750415653478,-1060.66,0.00029851,4]
[366712908,1750415653489,-1271.04,0.00029851,4]
[366712909,1750415653502,-490.0,0.00029851,4]
[366712910,1750415653512,-1687.17,0.00029851,4]
[366712911,1750415653521,-1425.44,0.00029851,4]
[366712912,1750415653531,-1260.23,0.00029851,4]
[366712913,1750415653542,-535.62,0.00029851,4]
[366712914,1750415653552,-600.47,0.00029851,4]
[366712915,1750415653562,-490.0,0.00029851,4]
[366712916,1750415653572,-7447.5,0.00029851,4]
[366712917,1750415653582,-490.0,0.00029851,4]
[366712918,1750415653592,-490.0,0.00029851,4]
[366712919,1750415653602,-998.98,0.00029851,4]
[366712920,1750415653612,-1377.1,0.00029851,4]
[366712921,1750415653622,-4861.36,0.00029851,4]
[366712922,1750415653632,-1977.29,0.00029851,4]
[366712923,1750415653642,-1276.4,0.00029851,4]
[366712924,1750415653652,-2235.26,0.00029851,4]
[366712925,1750415653662,-2488.9,0.00029851,4]
[366712926,1750415653672,-1190.82,0.00029851,4]
[366712927,1750415653682,-712.91,0.00029851,4]
[366712928,1750415653692,-1879.2,0.00029851,4]
[366712929,1750415653702,-3348.43,0.00029851,4]
[366712930,1750415653712,-2145.92,0.00029851,4]
[366712931,1750415653723,-3119.56,0.00029851,4]
[366712932,1750415653733,-3273.4,0.00029851,4]
[366712933,1750415653743,-490.0,0.00029853,4]
[366712934,1750415653753,-490.0,0.00029853,4]
[366712935,1750415653763,-490.0,0.00029853,4]
[366712936,1750415653774,-1480.37,0.00029853,4]
[366712937,1750415653784,-1643.1,0.00029853,4]
[366712938,1750415653794,-565.51,0.00029853,4]
[366712939,1750415653805,-492.45,0.00029853,4]
[366712940,1750415653815,-2032.33,0.00029853,4]
[366712941,1750415653825,-880.4,0.00029853,4]
[366712942,1750415653836,-490.0,0.00029853,4]
[366712943,1750415653847,-1088.85,0.00029853,4]
[366712944,1750415653857,-848.08,0.00029853,4]
[366712945,1750415653867,-912.78,0.00029853,4]
[366712946,1750415653877,-1634.09,0.00029853,4]
[366712947,1750415653887,-1838.84,0.00029853,4]
[366712948,1750415653897,-895.29,0.00029853,4]
[366712949,1750415653907,-818.8,0.00029853,4]
[366712950,1750415653916,-669.38,0.00029853,4]
[366712951,1750415653927,-490.0,0.00029853,4]
[366712952,1750415653937,-1627.01,0.00029853,4]
[366712953,1750415653947,-490.0,0.00029853,4]
[366712954,1750415653957,-490.0,0.00029853,4]
[366712955,1750415653968,-1078.58,0.00029853,4]
[366712956,1750415653979,-994.67,0.00029853,4]
[366712957,1750415653989,-771.65,0.00029853,4]
[366712958,1750415653999,-490.0,0.00029853,4]
[366712959,1750415654009,-694.41,0.00029853,4]
[366712960,1750415654019,-490.0,0.00029853,4]
[366712961,1750415654030,-679.99,0.00029853,4]
[366712962,1750415654041,-2362.55,0.00029853,4]
[366712963,1750415654052,-490.0,0.00029853,4]
[366712964,1750415654063,-404.26357722,0.00029853,4]
[366712965,1750415654073,-592.8,0.00029853,4]
[366712966,1750415654084,-490.0,0.00029853,4]
[366712967,1750415654096,-542.79,0.00029853,4]
[366712968,1750415654107,-1385.22,0.00029853,4]
[366712969,1750415654117,-1591.3,0.00029853,4]
[366712970,1750415654128,-490.0,0.00029853,4]
[366712971,1750415654139,-1073.69,0.00029853,4]
[366712972,1750415654150,-616.36,0.00029853,4]
[366712973,1750415654160,-490.0,0.00029853,4]
[366712974,1750415654171,-583.29,0.00029853,4]
[366712975,1750415654181,-1175.68,0.00029853,4]
[366712976,1750415654191,-1312.24,0.00029853,4]
[366712977,1750415654202,-1363.77,0.00029853,4]
[366712978,1750415654212,-770.8,0.00029853,4]
[366712979,1750415654223,-997.01,0.00029853,4]
[366712980,1750415654233,-989.39,0.00029853,4]
[366712981,1750415654243,-567.86,0.00029853,4]
[366712982,1750415654254,-1096.04,0.00029853,4]
[366712983,1750415654264,-1520.45,0.00029853,4]
[366712984,1750415654275,-805.39,0.00029853,4]
[366712985,1750415654285,-490.0,0.00029853,4]
[366712986,1750415654296,-1428.58,0.00029853,4]
[366712987,1750415654307,-596.59,0.00029853,4]
[366712988,1750415654317,-5382.53,0.00029853,4]
[366712989,1750415654328,-471.67925375,0.00029853,4]
[366712990,1750415654338,-703.96,0.00029853,4]
[366712991,1750415654349,-1669.54,0.00029853,4]
[366712992,1750415654359,-1601.56,0.00029853,4]
[366712993,1750415654369,-2721.61,0.00029853,4]
[366712994,1750415654380,-490.0,0.00029853,4]
[366712995,1750415654390,-741.54,0.00029853,4]
[366712996,1750415654400,-669.76,0.00029853,4]
[366712997,1750415654411,-1225.01,0.00029853,4]
[366712998,1750415654421,-2422.36,0.00029853,4]
[366712999,1750415654431,-1005.68,0.00029853,4]
[366713000,1750415654441,-352.53067333,0.00029853,4]
[366713001,1750415654452,-2138.59,0.00029853,4]